bitfinex-derivatives/quotes_SOLF0:USTF0_20240920
["timestamp","ask_amount","ask_price","bid_price","bid_amount"]
[1726791265745,3.4904,143.22,143.19,3.4908]
[1726791265951,4.1819,143.25,143.21,10.74]
[1726791265952,3.42921337,143.25,143.21,10.74]
[1726791266145,3.489,143.28,143.24,3.4897]
[1726791266347,3.489,143.28,143.24,10.74]
[1726791266649,3.489,143.28,143.24,14.2297]
[1726791266848,3.489,143.27,143.24,14.2297]
[1726791267353,3.489,143.27,143.24,10.74]
[1726791268160,3.55499196,143.27,143.19,16.75]
[1726791268447,16.75,143.28,143.19,16.75]
[1726791268642,3.4899,143.24,143.2,3.4907]
[1726791269044,3.4899,143.24,143.19,16.75]
[1726791269246,3.4899,143.24,143.2,3.4906]
[1726791270151,3.4899,143.24,143.19,20.2408]
[1726791270557,3.4899,143.24,143.19,16.75]
[1726791271655,3.4899,143.24,143.2,3.4906]
[1726791272656,3.4899,143.24,143.14,4.215]
[1726791272657,20.30345554,143.27,143.17,16.75]
[1726791273450,20.30345554,143.27,143.18,3.491]
[1726791274653,3.4902,143.23,143.19,16.75]
[1726791274849,3.4902,143.23,143.14,4.215]
[1726791274850,3.55345554,143.27,143.21,16.75]
[1726791275254,3.4898,143.24,143.21,16.75]
[1726791275460,16.75,143.28,143.21,16.75]
[1726791275853,3.4896,143.25,143.21,20.2403]
[1726791276452,3.4897,143.24,143.21,20.2403]
[1726791277753,2.7465,143.34,143.23,16.75]
[1726791277955,16.75,143.33,143.23,16.75]
[1726791278460,16.75,143.31,143.21,20.9164]
[1726791278961,16.75,143.31,143.22,3.4901]
[1726791279554,3.4894,143.26,143.23,3.4899]
[1726791279749,16.75,143.31,143.21,20.9164]
[1726791280150,16.75,143.31,143.22,3.49]
[1726791280559,3.4894,143.26,143.21,20.9164]
[1726791281062,16.75,143.31,143.23,3.4899]
[1726791281761,3.4895,143.26,143.23,3.4899]
[1726791283460,3.4895,143.25,143.22,3.4901]
[1726791283857,3.43066486,143.27,143.21,4.1664]
[1726791284058,16.75,143.29,143.21,4.1664]
[1726791285062,3.4897,143.24,143.21,7.6567]
[1726791286165,20.2851967,143.27,143.21,2.7616]
[1726791286359,16.75,143.27,143.19,16.75]
[1726791286756,16.75,143.27,143.19,20.2407]
[1726791286958,20.18532844,143.27,143.19,20.2407]
[1726791287154,3.4902,143.23,143.19,20.2407]
[1726791287360,20.18532844,143.27,143.19,20.2407]
[1726791288058,3.4903,143.22,143.19,20.2407]
[1726791291764,3.4903,143.22,143.19,16.75]
[1726791293855,3.4903,143.22,143.19,3.4909]
[1726791294056,3.4903,143.22,143.21,10.73]
[1726791294969,3.4906,143.21,143.14,4.2287]
[1726791295269,3.4906,143.21,143.2,10.73]
[1726791300970,3.4913,143.18,143.14,4.2287]
[1726791301279,10.73,143.21,143.17,10.73]
[1726791301675,4.1625,143.26,143.2,10.73]
[1726791301977,10.73,143.25,143.21,10.73]
[1726791302175,3.4904,143.22,143.21,10.73]
[1726791302978,3.4907,143.2,143.19,10.73]
[1726791303179,3.4907,143.2,143.18,10.73]
[1726791303874,3.4903,143.22,143.19,10.73]
[1726791304082,3.4903,143.22,143.2,10.73]
[1726791305480,10.73,143.24,143.2,10.73]
[1726791305684,10.73,143.21,143.14,4.2287]
[1726791305871,10.73,143.21,143.17,10.73]
[1726791306070,10.73,143.22,143.18,10.73]
[1726791306677,3.4905,143.21,143.18,14.221]
[1726791306875,4.1625,143.26,143.2,10.73]
[1726791307074,4.1625,143.26,143.14,4.2287]
[1726791307075,10.73,143.25,143.21,10.73]
[1726791307275,3.49,143.23,143.21,10.73]
[1726791307775,14.16532844,143.27,143.22,10.73]
[1726791307980,10.73,143.27,143.22,10.73]
[1726791308378,3.4899,143.24,143.22,10.73]
[1726791308785,3.50265315,143.26,143.22,10.73]
[1726791308982,3.4895,143.25,143.22,10.73]
[1726791309179,3.50265315,143.26,143.22,10.73]
[1726791309486,3.50265315,143.26,143.2,3.4905]
[1726791309487,10.73,143.25,143.21,10.73]
[1726791309782,3.4901,143.23,143.21,10.73]
[1726791310175,10.73,143.25,143.21,10.73]
[1726791310176,3.4902,143.22,143.21,10.73]
[1726791310375,10.73,143.24,143.19,10.73]
[1726791310882,14.27511471,143.24,143.19,10.73]
[1726791311282,3.4905,143.21,143.19,10.73]
[1726791313583,10.73,143.23,143.14,4.2287]
[1726791313785,10.73,143.22,143.17,10.73]
[1726791314182,3.4908,143.2,143.17,10.73]
[1726791314576,10.73,143.23,143.18,10.73]
[1726791314783,10.73,143.23,143.19,10.73]
[1726791315379,14.22716949,143.23,143.19,10.73]
[1726791315784,3.4906,143.21,143.19,10.73]
[1726791316286,3.4906,143.21,143.18,14.2212]
[1726791316683,3.4907,143.2,143.18,10.73]
[1726791317190,10.73,143.22,143.18,10.73]
[1726791317883,10.73,143.22,143.17,10.73]
[1726791318085,10.73,143.22,143.16,10.73]
[1726791318383,3.4912,143.18,143.16,10.73]
[1726791319186,10.73,143.18,143.07,139.7]
[1726791319386,10.73,143.15,143.11,10.73]
[1726791319592,3.4924,143.14,143.1,3.4931]
[1726791319891,10.73,143.15,143.11,10.73]
[1726791320085,4.2191,143.22,143.11,10.73]
[1726791320281,10.73,143.17,143.11,10.73]
[1726791320485,10.73,143.18,143.14,10.73]
[1726791320784,3.4917,143.17,143.14,10.73]
[1726791321381,3.4917,143.17,143.09,4.252]
[1726791321382,3.4913,143.18,143.16,10.73]
[1726791321692,10.73,143.21,143.17,10.73]
[1726791322292,3.49716949,143.23,143.17,10.73]
[1726791322592,10.73,143.23,143.17,10.73]
[1726791322791,3.4907,143.21,143.19,10.73]
[1726791323386,14.22713312,143.23,143.19,10.73]
[1726791323983,3.49713312,143.23,143.17,3.4913]
[1726791324189,16.77,143.25,143.17,3.4913]
[1726791324486,16.77,143.25,143.18,3.4911]
[1726791324682,20.23167912,143.25,143.18,3.4911]
[1726791325193,3.4906,143.21,143.18,3.4911]
[1726791326392,3.4907,143.2,143.18,3.4911]
[1726791327493,3.4906,143.21,143.18,3.4911]
[1726791327890,3.4906,143.21,143.16,16.77]
[1726791328391,3.4906,143.21,143.18,3.491]
[1726791329694,3.4906,143.21,143.17,3.4913]
[1726791330796,3.4907,143.2,143.17,3.4913]
[1726791334008,0.2741,143.23,143.16,16.77]
[1726791334009,3.4905,143.21,143.18,3.4912]
[1726791334711,3.4904,143.22,143.18,3.4912]
[1726791335407,3.4904,143.22,143.19,3.4909]
[1726791335909,3.4905,143.21,143.16,16.77]
[1726791337008,3.4905,143.21,143.17,3.4913]
[1726791337308,3.4905,143.21,143.16,16.77]
[1726791337610,3.4903,143.22,143.19,3.4909]
[1726791338403,3.7643,143.23,143.18,20.2612]
[1726791338608,3.7643,143.23,143.2,16.77]
[1726791338609,0.2741,143.23,143.2,16.77]
[1726791339409,0.2741,143.23,143.21,3.4903]
[1726791340907,0.2741,143.23,143.2,16.77]
[1726791341103,0.2741,143.23,143.22,3.4902]
[1726791341310,16.77,143.31,143.21,16.77]
[1726791341513,3.4888,143.28,143.24,3.4896]
[1726791341903,14.03306495,143.3,143.24,3.4896]
[1726791342314,3.489,143.27,143.24,3.4896]
[1726791342509,14.03306495,143.3,143.23,16.77]
[1726791343006,3.4884,143.3,143.25,16.77]
[1726791343313,3.4884,143.3,143.26,3.4891]
[1726791343612,3.4884,143.3,143.25,16.77]
[1726791344008,3.4884,143.3,143.27,10.72]
[1726791344408,3.4884,143.3,143.26,10.72]
[1726791344603,3.4887,143.29,143.26,10.72]
[1726791345110,3.4889,143.28,143.26,10.72]
[1726791345313,10.72,143.27,143.22,1.3451]
[1726791346219,10.72,143.25,143.21,3.4904]
[1726791347214,14.2096,143.25,143.21,3.4904]
[1726791347916,3.4896,143.25,143.21,3.4904]
[1726791348117,3.4898,143.24,143.21,3.4904]
[1726791349208,16.76,143.26,143.17,19.5727]
[1726791349404,16.76,143.26,143.17,18.1798]
[1726791349816,3.4903,143.22,143.18,3.491]
[1726791350211,20.28286877,143.26,143.17,18.1798]
[1726791351516,3.4901,143.23,143.19,3.4908]
[1726791352109,20.28286877,143.26,143.17,18.1798]
[1726791352418,16.76,143.28,143.21,3.4903]
[1726791352618,3.40508407,143.27,143.21,3.4903]
[1726791353418,3.40508407,143.27,143.23,3.4899]
[1726791353715,16.76,143.3,143.21,16.76]
[1726791353910,3.4892,143.27,143.21,16.76]
[1726791356820,3.4892,143.27,143.24,3.4897]
[1726791357215,3.4892,143.27,143.21,16.76]
[1726791357412,3.4889,143.28,143.21,16.76]
[1726791357615,3.4889,143.28,143.23,16.76]
[1726791357917,3.4887,143.29,143.25,3.4893]
[1726791358218,3.4887,143.29,143.23,16.76]
[1726791358414,3.4887,143.29,143.26,3.4891]
[1726791360116,3.4888,143.28,143.25,3.4894]
[1726791360318,16.76,143.31,143.22,16.76]
[1726791361726,3.4887,143.29,143.22,16.76]
[1726791361922,21.58738395,143.35,143.2,1.4328]
[1726791362121,16.76,143.27,143.22,3.4902]
[1726791362318,20.29176557,143.27,143.22,3.4902]
[1726791363421,16.76,143.26,143.2,1.4328]
[1726791363621,16.76,143.24,143.17,1.4198]
[1726791363821,3.45391801,143.23,143.17,1.4198]
[1726791364327,16.76,143.22,143.14,1.3597]
[1726791364625,3.54677653,143.21,143.15,3.4917]
[1726791365820,3.4908,143.2,143.15,3.4917]
[1726791366527,3.4908,143.2,143.16,3.4916]
[1726791368723,3.491,143.19,143.14,18.1197]
[1726791368930,16.76,143.2,143.14,1.3597]
[1726791369626,3.4914,143.18,143.14,1.3597]
[1726791370729,3.4914,143.18,143.14,4.8519]
[1726791375836,16.76,143.18,143.13,3.4923]
[1726791376033,3.45751355,143.17,143.09,16.76]
[1726791376227,3.4918,143.16,143.12,3.4924]
[1726791377638,3.52180039,143.17,143.11,3.4928]
[1726791377835,16.76,143.16,143.08,16.76]
[1726791378131,16.76,143.16,143.11,3.4928]
[1726791378333,20.25888012,143.16,143.11,3.4928]
[1726791378736,3.4921,143.15,143.11,3.4928]
[1726791380941,3.4918,143.16,143.1,16.76]
[1726791381845,3.4915,143.17,143.1,16.76]
[1726791382045,18.1114,143.2,143.13,3.4922]
[1726791382338,21.66504075,143.2,143.13,3.4922]
[1726791382844,3.4917,143.16,143.13,3.4922]
[1726791384746,3.4915,143.17,143.1,16.76]
[1726791385736,3.4915,143.17,143.14,3.4921]
[1726791388948,10.74,143.16,143.12,10.74]
[1726791389647,10.74,143.15,143.1,10.74]
[1726791389851,10.74,143.14,143.09,10.74]
[1726791390255,14.2323,143.14,143.11,3.4928]
[1726791391250,10.74,143.14,143.12,3.4926]
[1726791391857,14.232,143.15,143.12,3.4926]
[1726791392759,3.4922,143.14,143.11,3.4928]
[1726791394962,3.4929,143.11,143.08,3.4935]
[1726791395162,10.74,143.11,143.06,12.1424]
[1726791395562,10.74,143.11,143.08,3.4935]
[1726791396358,14.2329,143.11,143.08,3.4935]
[1726791396668,4.90504075,143.2,143.07,3.4938]
[1726791396669,10.74,143.09,143.07,3.4938]
[1726791396967,10.74,143.09,143.06,12.1424]
[1726791397163,10.74,143.09,143.02,1.3322]
[1726791397373,10.74,143.09,143.04,10.74]
[1726791397874,10.74,143.09,143.06,3.4939]
[1726791399967,10.74,143.09,143.07,3.4939]
[1726791402273,10.74,143.09,143.06,3.494]
[1726791402474,10.74,143.09,143.03,1.4489]
[1726791402475,10.74,143.08,143.03,1.4489]
[1726791402668,10.74,143.08,143.03,12.1889]
[1726791403275,10.74,143.07,143.04,3.4946]
[1726791403769,10.74,143.07,143.05,3.4942]
[1726791404174,10.74,143.07,143.03,1.4489]
[1726791404369,3.45735409,143.09,143.03,1.4489]
[1726791404569,10.74,143.06,143.03,1.4489]
[1726791404769,10.74,143.06,143.04,3.4945]
[1726791405568,10.74,143.06,142.97,1.416]
[1726791405569,10.74,143.05,142.97,1.416]
[1726791405765,10.74,143.05,143.0,104.11486632]
[1726791406376,10.74,143.04,143.0,93.37486632]
[1726791406678,10.74,143.04,143.01,3.4952]
[1726791408180,10.74,143.02,142.98,1.4377]
[1726791408378,10.74,143.03,142.98,12.1777]
[1726791408773,10.74,143.03,143.01,3.4952]
[1726791410278,10.74,143.03,143.0,3.4954]
[1726791410479,10.74,143.02,143.0,3.4954]
[1726791414582,3.4949,143.03,143.0,3.4954]
[1726791415177,14.2349,143.03,143.0,3.4954]
[1726791416083,10.74,143.01,142.98,3.4959]
[1726791416284,10.74,143.0,142.98,3.4959]
[1726791419694,10.74,143.01,142.98,3.4959]
[1726791421192,10.74,143.01,142.97,12.156]
[1726791421393,14.2349,143.03,142.98,10.74]
[1726791421593,10.74,143.03,142.98,10.74]
[1726791421893,10.74,143.03,143.0,3.4954]
[1726791422295,10.74,143.02,142.99,3.4957]
[1726791422796,3.4954,143.01,142.98,3.4961]
[1726791423001,10.74,143.02,142.97,12.156]
[1726791423492,10.74,143.02,142.99,3.4957]
[1726791423997,7.06566401,143.04,142.98,10.74]
[1726791424193,1.4103,143.09,143.02,10.74]
[1726791424401,10.74,143.09,143.04,10.74]
[1726791424594,3.50426532,143.08,143.05,3.4942]
[1726791425493,14.2334,143.09,143.05,3.4942]
[1726791426091,3.4937,143.08,143.05,3.4942]
[1726791426895,14.2337,143.08,143.04,3.4945]
[1726791427093,10.74,143.07,143.04,3.4945]
[1726791427698,10.74,143.07,142.98,1.3235]
[1726791427996,10.74,143.07,143.02,10.74]
[1726791428191,10.74,143.07,143.02,3.495]
[1726791428499,10.74,143.04,143.0,10.74]
[1726791428899,10.74,143.04,143.02,3.495]
[1726791430289,10.74,143.04,142.98,1.3235]
[1726791430290,10.74,143.08,143.03,10.74]
[1726791430490,1.3516,143.13,143.05,10.74]
[1726791430688,10.74,143.09,143.05,10.74]
[1726791430901,17.69297803,143.09,143.05,14.2343]
[1726791431600,3.4936,143.08,143.05,14.2343]
[1726791432099,3.4936,143.08,143.05,3.4943]
[1726791432100,14.2336,143.08,143.05,3.4943]
[1726791432690,10.74,143.06,143.01,10.74]
[1726791432891,10.74,143.05,143.0,10.74]
[1726791434103,10.74,143.07,143.02,10.74]
[1726791434497,1.3516,143.13,143.04,10.74]
[1726791434702,10.74,143.09,143.04,10.74]
[1726791435001,1.3516,143.13,143.03,10.74]
[1726791435002,14.23853042,143.08,143.03,10.74]
[1726791435297,10.74,143.08,143.03,10.74]
[1726791435501,14.2338,143.08,143.04,3.4944]
[1726791435695,10.74,143.07,143.03,10.74]
[1726791435891,10.74,143.05,143.02,3.495]
[1726791436095,10.74,143.04,143.02,3.495]
[1726791436399,10.74,143.03,142.99,1.3263]
[1726791436603,10.74,143.01,142.99,3.4958]
[1726791437500,10.74,143.01,142.93,1.4295]
[1726791437501,10.74,143.0,142.93,1.4295]
[1726791437798,10.74,143.0,142.95,10.74]
[1726791438192,14.2356,143.0,142.97,3.4963]
[1726791438692,10.74,143.0,142.95,10.74]
[1726791438900,3.4959,142.99,142.95,14.2366]
[1726791439099,10.74,142.98,142.95,14.2366]
[1726791439902,3.4959,142.99,142.95,3.4966]
[1726791441096,3.4959,142.99,142.96,3.4966]
[1726791441298,3.4956,143.0,142.96,3.4966]
[1726791442103,3.4954,143.01,142.97,3.4963]
[1726791442902,16.8,143.02,142.96,3.4964]
[1726791443211,16.8,143.01,142.96,3.4964]
[1726791443404,3.4963,142.97,142.94,1.3387]
[1726791443906,16.8,142.99,142.94,1.3387]
[1726791444506,16.8,143.01,142.94,1.3387]
[1726791445198,3.4959,142.99,142.95,3.4967]
[1726791445404,3.4959,142.99,142.94,1.3387]
[1726791445701,16.8,143.01,142.94,1.3387]
[1726791446709,3.496,142.99,142.95,3.4966]
[1726791447204,16.8,142.99,142.94,3.4969]
[1726791447608,3.4962,142.98,142.94,3.4969]
[1726791448708,3.4962,142.98,142.95,3.4968]
[1726791448906,20.2959,142.99,142.95,3.4968]
[1726791449112,20.2959,142.99,142.96,3.4965]
[1726791449304,3.4959,142.99,142.96,3.4965]
[1726791449498,16.8,143.01,142.93,1.4295]
[1726791450212,3.4962,142.98,142.94,3.4969]
[1726791450403,16.8,142.97,142.9,16.8]
[1726791450714,3.43227068,142.96,142.89,2.8375]
[1726791450905,20.2969,142.95,142.91,3.4978]
[1726791451110,16.8,142.95,142.91,3.4978]
[1726791451608,16.8,142.95,142.89,2.8375]
[1726791452206,20.2968,142.95,142.92,3.4975]
[1726791452411,3.4968,142.95,142.92,3.4975]
[1726791452603,16.8,142.97,142.92,3.4975]
[1726791453008,3.4967,142.96,142.92,3.4975]
[1726791454113,3.4964,142.97,142.9,16.8]
[1726791454314,16.8,143.01,142.91,16.8]
[1726791454614,3.4956,143.0,142.96,3.4964]
[1726791456515,3.4962,142.98,142.94,3.4969]
[1726791456716,3.4962,142.98,142.92,16.8]
[1726791457115,3.4962,142.98,142.94,3.4969]
[1726791457512,3.4962,142.98,142.92,16.8]
[1726791457714,3.4959,142.99,142.95,3.4968]
[1726791459712,3.4959,142.99,142.96,3.4966]
[1726791460216,3.4957,143.0,142.96,3.4966]
[1726791461311,3.4959,142.99,142.93,16.8]
[1726791461616,3.4959,142.99,142.95,3.4968]
[1726791463113,3.4961,142.98,142.95,3.4968]
[1726791463320,3.4961,142.98,142.94,3.4969]
[1726791464018,3.4964,142.97,142.93,3.4971]
[1726791464315,16.8,142.99,142.93,3.4971]
[1726791465217,3.4965,142.97,142.93,3.4971]
[1726791465721,3.4965,142.97,142.94,3.497]
[1726791467224,3.4962,142.98,142.94,3.497]
[1726791467413,3.4962,142.98,142.9,16.8]
[1726791467618,16.8,143.01,142.91,16.8]
[1726791467818,3.496,142.99,142.91,16.8]
[1726791469120,3.496,142.99,142.95,3.4966]
[1726791469527,16.8,143.01,142.91,16.8]
[1726791469721,16.8,143.01,142.94,3.4968]
[1726791470324,3.4962,142.98,142.95,3.4968]
[1726791471420,3.4959,142.99,142.95,3.4968]
[1726791473330,3.4959,142.99,142.89,19.6375]
[1726791473331,16.8,142.99,142.89,19.6375]
[1726791473835,3.4966,142.96,142.92,3.4975]
[1726791474035,10.76,142.95,142.91,10.76]
[1726791474336,10.76,142.95,142.92,3.4973]
[1726791475333,14.2568,142.95,142.92,3.4973]
[1726791475930,3.4968,142.95,142.92,3.4973]
[1726791476336,3.4968,142.95,142.91,3.4977]
[1726791477641,3.4972,142.94,142.9,3.4979]
[1726791478432,3.4972,142.94,142.91,3.4978]
[1726791480941,3.46983648,142.95,142.91,3.4978]
[1726791480942,6.96673648,142.95,142.91,3.4978]
[1726791481138,3.4969,142.95,142.91,3.4978]
[1726791481645,7.0142204,142.95,142.91,3.4978]
[1726791484548,3.4971,142.94,142.9,3.4979]
[1726791484748,16.81,142.93,142.87,1.4577]
[1726791485441,3.44488851,142.92,142.87,1.4577]
[1726791485839,6.94258851,142.92,142.88,3.4984]
[1726791486044,16.81,142.95,142.87,1.4577]
[1726791486252,20.2713615,142.95,142.87,1.4577]
[1726791486442,3.4974,142.93,142.89,3.498]
[1726791487444,16.81,142.93,142.88,3.4984]
[1726791487945,3.4974,142.93,142.87,1.4577]
[1726791488149,3.4613615,142.95,142.87,18.2677]
[1726791488441,3.4971,142.94,142.9,3.4978]
[1726791488843,3.4971,142.94,142.87,18.2677]
[1726791489442,3.4971,142.94,142.9,3.4979]
[1726791489848,20.3071,142.94,142.9,3.4979]
[1726791490247,3.4973,142.93,142.9,3.4979]
[1726791490643,16.81,142.94,142.89,3.4982]
[1726791491344,3.4976,142.92,142.89,3.4982]
[1726791495949,10.75,142.91,142.89,3.4982]
[1726791497752,10.75,142.91,142.88,3.4984]
[1726791499755,14.2478,142.91,142.88,3.4984]
[1726791500352,10.75,142.91,142.88,3.4984]
[1726791500753,10.75,142.9,142.88,3.4984]
[1726791500946,10.75,142.9,142.87,4.9564]
[1726791501147,10.75,142.88,142.77,368.98]
[1726791501354,10.75,142.85,142.81,10.75]
[1726791501660,10.75,142.87,142.84,3.4995]
[1726791506766,10.75,142.86,142.84,3.4995]
[1726791507766,10.75,142.87,142.84,3.4995]
[1726791512967,6.95120719,142.88,142.84,3.4995]
[1726791513168,10.75,142.86,142.84,3.4995]
[1726791515370,10.75,142.86,142.83,3.4997]
[1726791515673,3.45260719,142.88,142.82,10.75]
[1726791515968,10.75,142.87,142.82,10.75]
[1726791516176,10.75,142.86,142.82,10.75]
[1726791516672,10.75,142.86,142.81,10.75]
[1726791517171,10.75,142.86,142.83,3.4996]
[1726791517472,10.75,142.86,142.81,10.75]
[1726791517868,10.75,142.86,142.83,3.4996]
[1726791519572,10.75,142.84,142.83,3.4996]
[1726791520676,10.75,142.86,142.84,3.4994]
[1726791522170,10.75,142.89,142.83,10.75]
[1726791522372,14.06157801,142.96,142.86,10.75]
[1726791522566,140.04,142.97,142.86,10.75]
[1726791522567,10.75,142.91,142.86,10.75]
[1726791522771,14.24814486,142.91,142.88,3.4985]
[1726791522975,140.04,142.97,142.88,10.75]
[1726791523269,1.4146,142.98,142.81,3.54120218]
[1726791523270,10.75,142.93,142.89,10.75]
[1726791523874,10.75,142.93,142.91,3.4977]
[1726791525676,10.75,142.94,142.91,3.4977]
[1726791526476,10.75,142.94,142.9,10.75]
[1726791526674,10.75,142.96,142.9,12.1421]
[1726791526876,69.7801,143.28,142.95,10.75]
[1726791526877,6.9868,143.1,142.95,10.75]
[1726791527075,10.75,143.0,142.95,10.75]
[1726791527267,10.75,142.99,142.94,10.75]
[1726791527473,10.75,142.98,142.94,10.75]
[1726791528477,10.75,142.98,142.95,3.4966]
[1726791528674,10.75,142.98,142.94,10.75]
[1726791529878,10.75,142.98,142.95,3.4968]
[1726791531775,10.75,142.98,142.96,3.4965]
[1726791531982,10.75,143.0,142.95,10.75]
[1726791532783,10.75,143.0,142.97,3.4962]
[1726791533183,3.4952,143.02,142.96,10.75]
[1726791533387,3.4952,143.02,142.98,3.4959]
[1726791533388,10.75,143.01,142.98,3.4959]
[1726791533777,10.75,142.99,142.94,10.75]
[1726791534282,10.75,142.98,142.93,10.75]
[1726791534779,10.75,142.96,142.92,10.75]
[1726791534980,10.75,142.95,142.91,12.2149]
[1726791536182,10.75,142.95,142.93,3.4971]
[1726791540487,10.75,142.95,142.91,12.2149]
[1726791543789,10.75,142.95,142.93,3.4972]
[1726791544192,10.75,142.95,142.92,3.4974]
[1726791544383,10.75,142.93,142.83,139.96]
[1726791544588,10.75,142.92,142.87,10.75]
[1726791544987,10.75,142.92,142.89,3.4982]
[1726791545891,10.75,142.92,142.9,3.4979]
[1726791546288,10.75,142.93,142.9,3.4979]
[1726791547797,10.75,142.92,142.9,3.4979]
[1726791548996,10.75,142.92,142.86,10.75]
[1726791549791,10.75,142.92,142.87,10.75]
[1726791550188,10.75,142.92,142.89,3.4981]
[1726791556396,10.75,142.9,142.84,2.8163]
[1726791556592,10.75,142.85,142.81,10.75]
[1726791556792,10.75,142.85,142.81,3.5001]
[1726791556993,10.75,142.84,142.8,10.75]
[1726791557289,10.75,142.84,142.78,10.75]
[1726791557496,10.75,142.84,142.8,3.5003]
[1726791558399,10.75,142.84,142.81,3.5002]
[1726791559595,6.19827346,142.93,142.77,2.7219]
[1726791559596,10.75,142.82,142.77,2.7219]
[1726791559792,10.75,142.81,142.77,2.7219]
[1726791559995,10.75,142.81,142.79,3.5005]
[1726791560191,10.75,142.81,142.77,1.3531]
[1726791560896,10.75,142.78,142.65,3.43544088]
[1726791561102,10.75,142.75,142.69,1.4393]
[1726791561298,10.75,142.75,142.72,3.5023]
[1726791562495,10.75,142.75,142.7,10.75]
[1726791562893,10.75,142.75,142.69,1.4393]
[1726791563093,10.75,142.75,142.71,3.5025]
[1726791563296,10.75,142.74,142.71,3.5025]
[1726791563496,10.75,142.73,142.71,3.5025]
[1726791564099,10.75,142.73,142.69,12.1893]
[1726791564100,10.75,142.73,142.7,3.5029]
[1726791564299,10.75,142.73,142.69,1.4393]
[1726791564700,10.75,142.73,142.71,3.5025]
[1726791566407,3.5013,142.77,142.72,3.5024]
[1726791566608,10.75,142.74,142.72,3.5024]
[1726791568406,10.75,142.74,142.71,3.5026]
[1726791569810,2.8869,142.83,142.69,12.1893]
[1726791570011,10.75,142.75,142.69,12.1893]
[1726791571614,10.75,142.75,142.71,3.5025]
[1726791571807,10.75,142.75,142.69,12.1893]
[1726791572218,10.75,142.75,142.72,3.5024]
[1726791573115,10.75,142.74,142.72,3.5024]
[1726791573312,3.5014,142.77,142.69,12.1893]
[1726791573617,10.75,142.75,142.71,10.75]
[1726791574413,10.75,142.75,142.72,3.5023]
[1726791577020,10.75,142.73,142.72,3.5023]
[1726791578119,10.75,142.73,142.71,3.5026]
[1726791578317,10.75,142.72,142.71,3.5026]
[1726791578918,10.75,142.73,142.72,3.5024]
[1726791579918,3.44352011,142.76,142.72,3.5024]
[1726791580110,10.75,142.76,142.71,10.75]
[1726791580515,10.75,142.76,142.73,3.5021]
[1726791580715,14.20858639,142.76,142.73,3.5021]
[1726791581209,10.75,142.76,142.73,3.5021]
[1726791581516,10.75,142.74,142.72,3.5024]
[1726791582516,10.75,142.73,142.71,3.5027]
[1726791583323,7.02685831,142.76,142.71,3.5027]
[1726791583324,10.75,142.72,142.71,3.5027]